bitfinex/quotes_BTCUSD_20260101
["timestamp","ask_amount","ask_price","bid_price","bid_amount"]
[1767311028159,0.06010139,88887.0,88873.0,0.01125201]
[1767311028308,0.06010139,88887.0,88872.0,0.01125213]
[1767311028309,0.40195889,88882.0,88872.0,0.01125213]
[1767311028511,0.01128,88881.0,88873.0,0.01125201]
[1767311030433,0.01128,88881.0,88874.0,0.01125188]
[1767311031782,0.01128,88881.0,88875.0,0.01125175]
[1767311031940,0.010802,88881.0,88875.0,0.01125175]
[1767311035127,0.00514526,88888.0,88878.0,0.10243561]
[1767311035311,0.01128,88887.0,88878.0,0.10243561]
[1767311035750,0.01128,88887.0,88879.0,0.01125125]
[1767311035908,0.01128,88887.0,88878.0,0.10243561]
[1767311038188,0.01128,88887.0,88879.0,0.01125125]
[1767311038378,0.01128,88887.0,88878.0,0.09118424]
[1767311038587,0.01128,88887.0,88878.0,0.10243561]
[1767311038842,0.01128,88887.0,88870.0,0.40195889]
[1767311038843,0.000549,88878.0,88874.0,0.01125188]
[1767311039003,0.000549,88878.0,88873.0,0.01125201]
[1767311039196,0.01128,88880.0,88873.0,0.01125201]
[1767311039606,0.01128,88880.0,88872.0,0.01125213]
[1767311040142,0.01128,88880.0,88871.0,0.01125226]
[1767311040345,0.10624721,88880.0,88871.0,0.01125226]
[1767311040501,0.10624721,88880.0,88872.0,0.01125213]
[1767311040699,0.10624721,88880.0,88871.0,0.01125226]
[1767311040925,0.10624721,88880.0,88870.0,0.01125239]
[1767311041107,0.09496721,88879.0,88871.0,0.01125226]
[1767311041703,0.09496721,88879.0,88872.0,0.01125213]
[1767311042822,0.09496721,88879.0,88873.0,0.01125201]
[1767311043803,0.01128,88880.0,88873.0,0.01125201]
[1767311045745,0.09496721,88884.0,88877.0,0.0112515]
[1767311045955,0.00514526,88888.0,88884.0,0.00055]
[1767311046196,0.01128,88887.0,88884.0,0.00055]
[1767311046396,0.01128,88887.0,88879.0,0.01125125]
[1767311046597,0.01128,88887.0,88878.0,0.01125137]
[1767311046776,0.01128,88887.0,88877.0,0.0112515]
[1767311046989,0.01128,88887.0,88876.0,0.01125163]
[1767311047188,0.01128,88887.0,88877.0,0.0112515]
[1767311047608,0.01128,88887.0,88878.0,0.01125137]
[1767311048142,0.01128,88887.0,88879.0,0.05625625]
[1767311048326,0.01128,88887.0,88879.0,0.01125125]
[1767311048522,0.01128,88887.0,88880.0,0.01125112]
[1767311049269,0.01128,88887.0,88881.0,0.01125099]
[1767311049422,0.01128,88887.0,88880.0,0.01125112]
[1767311049634,0.01128,88887.0,88879.0,0.01125125]
[1767311050490,0.01128,88887.0,88880.0,0.01125112]
[1767311051045,0.01128,88887.0,88879.0,0.01125125]
[1767311052002,0.01128,88887.0,88880.0,0.01125112]
[1767311053400,0.01128,88887.0,88881.0,0.01125099]
[1767311053609,0.10624721,88887.0,88882.0,0.01125087]
[1767311053822,0.10624721,88887.0,88881.0,0.01125099]
[1767311054279,0.10624721,88887.0,88882.0,0.01125087]
[1767311054483,0.10624721,88887.0,88884.0,0.01125061]
[1767311054660,0.10624721,88887.0,88881.0,0.01125099]
[1767311055061,0.10624721,88887.0,88881.0,0.06750561]
[1767311055368,0.10624721,88887.0,88882.0,0.01125087]
[1767311055569,0.10624721,88887.0,88881.0,0.01125099]
[1767311056420,0.10624721,88887.0,88882.0,0.05625435]
[1767311056721,0.10624721,88887.0,88882.0,0.01125087]
[1767311056882,0.01128,88887.0,88881.0,0.01125099]
[1767311057511,0.01117206,88886.0,88881.0,0.01125099]
[1767311057717,0.01117206,88886.0,88882.0,0.01125087]
[1767311057919,0.01117206,88886.0,88883.0,0.01125074]
[1767311058120,0.01062206,88886.0,88883.0,0.01125074]
[1767311058762,0.01062206,88886.0,88884.0,0.07768766]
[1767311059240,0.01062206,88886.0,88883.0,0.06750392]
[1767311059646,0.01062206,88886.0,88883.0,0.01125074]
[1767311060341,0.01062206,88886.0,88884.0,0.05625309]
[1767311060489,0.01062206,88886.0,88884.0,0.07738524]
[1767311060691,0.00478606,88886.0,88885.0,0.05625246]
[1767311060890,0.00029713,88890.0,88889.0,0.05624992]
[1767311061096,0.01157713,88890.0,88887.0,0.06750142]
[1767311061286,0.01102813,88890.0,88887.0,0.06750142]
[1767311061494,0.01102813,88890.0,88888.0,0.05624998]
[1767311061966,0.01102813,88890.0,88887.0,0.06750142]
[1767311063167,0.01102813,88890.0,88887.0,0.01125023]
[1767311064430,0.0006506,88897.0,88889.0,0.08860212]
[1767311064586,10.0,88900.0,88897.0,0.06749341]
[1767311064587,0.01128,88899.0,88897.0,0.06749341]
[1767311064793,9.93392786,88900.0,88894.0,0.01124935]
[1767311064956,9.93392786,88900.0,88885.0,0.22500958]
[1767311064957,0.08961187,88893.0,88890.0,0.01124985]
[1767311065160,9.93392786,88900.0,88890.0,0.01124985]
[1767311065161,0.08961187,88891.0,88890.0,0.01124985]
[1767311065512,0.01128,88892.0,88890.0,0.05624929]
[1767311065711,0.01128,88892.0,88889.0,0.01124998]
[1767311066425,10.33569652,88900.0,88894.0,0.01124935]
[1767311066612,0.000549,88894.0,88891.0,0.01124973]
[1767311066816,0.01128,88899.0,88894.0,0.01124935]
[1767311067016,0.08961187,88898.0,88894.0,0.01124935]
[1767311067223,0.08961187,88898.0,88895.0,0.01124922]
[1767311067585,0.01128,88899.0,88896.0,0.0112491]
[1767311067783,0.01128,88899.0,88896.0,0.06749447]
[1767311068820,0.01128,88899.0,88898.0,0.05624423]
[1767311070006,0.01128,88899.0,88896.0,0.06749447]
[1767311070843,0.01128,88899.0,88898.0,0.05624423]
[1767311071390,0.01128,88899.0,88896.0,0.06749447]
[1767311071999,0.10089187,88899.0,88896.0,0.06694547]
[1767311072584,0.10089187,88899.0,88896.0,0.0107001]
[1767311072797,0.10089187,88899.0,88896.0,0.01065718]
[1767311073172,0.10089187,88899.0,88896.0,0.06690244]
[1767311074420,0.01128,88899.0,88898.0,0.05624423]
[1767311074778,0.01128,88899.0,88896.0,0.06690244]
[1767311075638,9.93392786,88900.0,88898.0,0.05624423]
[1767311075946,0.01128,88899.0,88898.0,0.05624423]
[1767311076150,0.010731,88899.0,88898.0,0.05624423]
[1767311077231,9.07519731,88900.0,88899.0,0.01365996]
[1767311077432,8.90628838,88900.0,88898.0,0.05624423]
[1767311077606,8.5449642,88900.0,88898.0,0.05624423]
[1767311077821,8.4114937,88900.0,88898.0,0.02308883]
[1767311078023,8.17395899,88900.0,88898.0,0.02308883]
[1767311078304,7.80232436,88900.0,88898.0,0.02308883]
[1767311078522,7.74036997,88900.0,88898.0,0.02308883]
[1767311078928,7.6458664,88900.0,88898.0,0.02308883]
[1767311079497,7.12514337,88900.0,88898.0,0.02308883]
[1767311081629,6.58579986,88900.0,88898.0,0.02308883]
[1767311082309,6.04576696,88900.0,88898.0,0.02308883]
[1767311082436,5.74455742,88900.0,88899.0,0.0700329]
[1767311082856,5.50840122,88900.0,88899.0,0.0700329]
[1767311083060,5.50730867,88900.0,88899.0,0.0700329]
[1767311083434,4.49808601,88900.0,88898.0,0.02308883]
[1767311083697,4.48898815,88900.0,88899.0,0.08777743]
[1767311083838,4.47893795,88900.0,88899.0,0.08777743]
[1767311084058,0.40216866,88920.0,88899.0,0.08777743]
[1767311084059,0.03069719,88930.0,88902.0,0.08777743]
[1767311084259,0.40176866,88920.0,88902.0,0.08777743]
[1767311084460,0.01128,88919.0,88902.0,0.08777743]
[1767311084796,0.10089187,88919.0,88902.0,0.08777743]
[1767311090899,0.10089187,88919.0,88902.0,0.09902577]
[1767311091667,0.10089187,88919.0,88903.0,0.01124821]
[1767311091803,0.10089187,88919.0,88902.0,0.09902577]
[1767311092591,0.10089187,88919.0,88902.0,0.08777743]
[1767311095515,0.10089187,88919.0,88900.0,0.61553347]
[1767311095749,0.10089187,88919.0,88900.0,0.60428488]
[1767311096966,0.10089187,88919.0,88900.0,0.20251622]
[1767311097172,0.10089187,88919.0,88900.0,0.60428488]
[1767311098414,0.10089187,88919.0,88900.0,0.20251622]
[1767311098614,0.10089187,88919.0,88900.0,0.60428488]
[1767311100088,0.05623158,88918.0,88900.0,0.20251622]
[1767311100208,0.21640297,88917.0,88900.0,0.60373588]
[1767311100422,0.0002,88910.0,88900.0,0.60373588]
[1767311101099,0.21640297,88929.0,88901.0,0.01124846]
[1767311101307,0.01128,88928.0,88919.0,0.40176866]
[1767311101461,0.01128,88928.0,88911.0,0.20251622]
[1767311102088,0.01128,88928.0,88918.0,0.40176866]
[1767311102287,0.22768297,88928.0,88918.0,0.40176866]
[1767311103135,0.22768297,88928.0,88911.0,0.20251622]
[1767311103264,0.22768297,88928.0,88906.0,0.1486213]
[1767311103265,0.21675369,88930.0,88918.0,0.40176866]
[1767311103465,0.21675369,88930.0,88920.0,0.40176866]
[1767311104967,0.21675369,88930.0,88910.0,0.60428488]
[1767311104968,0.40211938,88930.0,88910.0,0.60428488]
[1767311105284,0.21640297,88929.0,88920.0,0.40176866]
[1767311109700,0.21640297,88929.0,88919.0,0.40176866]
[1767311112728,0.21640297,88929.0,88910.0,0.20251622]
[1767311112923,0.21640297,88929.0,88919.0,0.40176866]
[1767311113677,0.21640297,88929.0,88921.0,0.12609347]
[1767311113892,0.21640297,88929.0,88921.0,0.12605056]
[1767311118684,0.01124517,88927.0,88900.0,0.40135399]
[1767311118883,0.00035072,88930.0,88900.0,0.40135399]
[1767311118884,0.21640297,88926.0,88901.0,0.20251622]
[1767311119085,0.21640297,88924.0,88901.0,0.20251622]
[1767311119299,0.21640297,88924.0,88910.0,0.40135399]
[1767311121608,0.21605011,88924.0,88910.0,0.40135399]
[1767311121831,0.21605011,88924.0,88899.0,0.0001478]
[1767311121983,0.21605011,88924.0,88900.0,0.40135399]
[1767311122300,0.21605011,88924.0,88901.0,0.21376468]
[1767311122667,0.21605011,88924.0,88903.0,0.20251622]
[1767311124054,0.21605011,88924.0,88904.0,0.01124808]
[1767311124459,0.21605011,88924.0,88904.0,0.21430979]
[1767311124692,0.21605011,88924.0,88904.0,0.20306171]
[1767311127697,0.21605011,88924.0,88906.0,0.06748697]
[1767311127952,0.40170471,88930.0,88915.0,0.20278914]
[1767311127953,0.01128,88923.0,88915.0,0.20278914]
[1767311128256,0.01073,88923.0,88915.0,0.20278914]
[1767311130792,0.01073,88923.0,88910.0,0.46883739]
[1767311130793,0.01073,88923.0,88910.0,0.6044157]
[1767311130985,0.01073,88923.0,88911.0,0.0112472]
[1767311131150,0.01073,88923.0,88910.0,0.6044157]
[1767311131355,0.01073,88923.0,88911.0,0.20306171]
[1767311132534,0.01073,88923.0,88911.0,0.21430891]
[1767311132742,0.22251676,88923.0,88910.0,0.40135399]
[1767311132942,0.22251676,88923.0,88907.0,0.0112477]
[1767311133193,0.22251676,88923.0,88911.0,0.0112472]
[1767311133601,0.00035072,88930.0,88911.0,0.22494404]
[1767311133756,0.0002,88937.0,88928.0,0.20306171]
[1767311134092,0.00030519,88937.0,88928.0,0.20306171]
[1767311134644,0.00030519,88937.0,88928.0,0.20251271]
[1767311136185,0.00030519,88937.0,88910.0,0.41260131]
[1767311136186,0.22306676,88936.0,88910.0,0.41260131]
[1767311136386,0.22306676,88936.0,88915.0,0.01128]
[1767311136612,0.22306676,88936.0,88920.0,0.40135399]
[1767311136990,0.22306676,88936.0,88915.0,0.21434171]
[1767311142844,0.22306676,88936.0,88910.0,0.46883752]
[1767311142845,0.21178676,88934.0,88913.0,0.01128]
[1767311143240,0.21178676,88934.0,88911.0,0.20306171]
[1767311143466,0.21178676,88934.0,88911.0,0.21434171]
[1767311144039,0.21178676,88934.0,88911.0,0.22558891]
[1767311144233,0.21178676,88934.0,88912.0,0.01124707]
[1767311144421,0.21178676,88934.0,88913.0,0.20306171]
[1767311147161,0.01128,88936.0,88904.0,0.01124808]
[1767311147162,0.21178676,88929.0,88904.0,0.01124808]
[1767311147284,0.40135399,88930.0,88908.0,0.01128]
[1767311147285,0.21178676,88927.0,88908.0,0.01128]
[1767311147919,0.21178676,88927.0,88908.0,0.21434171]
[1767311149231,0.01128,88928.0,88908.0,0.21434171]
[1767311150742,0.01128,88928.0,88911.0,0.20306171]
[1767311151614,0.01128,88928.0,88913.0,0.20306171]
[1767311151849,0.00030519,88937.0,88919.0,0.20306171]
[1767311152052,0.01128,88936.0,88919.0,0.20306171]
[1767311153443,0.01128,88936.0,88921.0,0.20359159]
[1767311155451,0.01128,88936.0,88923.0,0.20359159]
[1767311166055,0.21517957,88936.0,88920.0,0.40135399]
[1767311166504,0.21517957,88936.0,88917.0,0.20359159]
[1767311166705,0.21517957,88936.0,88920.0,0.40135399]
[1767311167268,0.21517957,88936.0,88920.0,0.60494558]
[1767311170589,0.01128,88936.0,88921.0,0.20359159]
[1767311173826,0.01128,88936.0,88926.0,0.60494558]
[1767311176599,0.01128,88936.0,88926.0,0.60481435]
[1767311177336,0.001,88944.0,88934.0,0.20359159]
[1767311177541,0.00666,88950.0,88937.0,0.20359159]
[1767311177864,0.00666,88950.0,88938.0,0.40122276]
[1767311178053,0.00666,88950.0,88938.0,0.41246654]
[1767311178277,0.00666,88950.0,88939.0,0.01124366]
[1767311179059,0.00666,88950.0,88938.0,0.41246654]
[1767311179442,0.00666,88950.0,88940.0,0.01124353]
[1767311179642,0.00666,88950.0,88938.0,0.41246654]
[1767311180048,0.00666,88950.0,88938.0,0.40122276]
[1767311180242,0.00666,88950.0,88938.0,0.41246654]
[1767311180677,0.00666,88950.0,88940.0,0.01124353]
[1767311181098,0.00666,88950.0,88938.0,0.41246654]
[1767311181393,0.00666,88950.0,88941.0,0.0112434]
[1767311181591,0.00666,88950.0,88940.0,0.01124353]
[1767311181794,0.00666,88950.0,88937.0,0.20359159]
[1767311181977,0.00666,88950.0,88938.0,0.40122276]
[1767311182576,0.00666,88950.0,88937.0,0.20359159]
[1767311182781,0.00666,88950.0,88938.0,0.40122276]
[1767311183614,0.00666,88950.0,88939.0,0.01124366]
[1767311183845,0.00666,88950.0,88938.0,0.41246654]
[1767311184009,0.00666,88950.0,88939.0,0.01124366]
[1767311184208,0.00666,88950.0,88940.0,0.01124353]
[1767311184458,0.00666,88950.0,88939.0,0.01124366]
[1767311184819,0.00666,88950.0,88940.0,0.01124353]
[1767311185022,0.00666,88950.0,88939.0,0.01124366]
[1767311185370,0.00666,88950.0,88938.0,0.41246654]
[1767311185523,0.00666,88950.0,88939.0,0.01124366]
[1767311186052,0.00666,88950.0,88938.0,0.41246654]
[1767311186971,0.00666,88950.0,88939.0,0.01124366]
[1767311187171,0.00666,88950.0,88938.0,0.41246654]
[1767311188361,0.19763662,88950.0,88937.0,0.01124391]
[1767311188509,0.19763662,88950.0,88938.0,0.40122276]
[1767311188705,0.19763662,88950.0,88937.0,0.01124391]
[1767311188964,0.19763662,88950.0,88938.0,0.40122276]
[1767311189458,0.19763662,88950.0,88936.0,0.01124404]
[1767311189693,0.19763662,88950.0,88938.0,0.40122276]
[1767311190227,0.001099,88938.0,88933.0,0.01128]
[1767311190425,0.001099,88938.0,88933.0,0.19652898]
[1767311190628,0.59885938,88950.0,88933.0,0.20777339]
[1767311191093,0.19097662,88949.0,88934.0,0.01124429]
[1767311191350,0.19112442,88948.0,88933.0,0.20777339]
[1767311191513,0.19112442,88948.0,88933.0,0.19652898]
[1767311192366,0.19112442,88948.0,88933.0,0.20777339]
[1767311192517,0.19112442,88948.0,88933.0,0.19652898]
[1767311193588,0.19112442,88948.0,88933.0,0.01128]
[1767311193802,0.19112442,88948.0,88931.0,0.01124467]
[1767311193803,0.001099,88933.0,88922.0,0.18524898]
[1767311193991,0.001099,88933.0,88922.0,0.1855997]
[1767311194195,0.01128,88939.0,88923.0,0.40122276]
[1767311194500,0.01128,88939.0,88929.0,0.58647174]
[1767311194716,0.01128,88939.0,88932.0,0.18524898]
[1767311194921,0.01128,88944.0,88934.0,0.18524898]
[1767311195138,0.01128,88944.0,88934.0,0.19649327]
[1767311195339,0.01128,88944.0,88935.0,0.01124416]
[1767311195544,0.01128,88944.0,88933.0,0.01124441]
[1767311195959,0.01128,88944.0,88934.0,0.01124429]
[1767311196344,0.01128,88944.0,88935.0,0.01124416]
[1767311196576,0.01128,88944.0,88934.0,0.01124429]
[1767311196775,0.01128,88944.0,88932.0,0.01124454]
[1767311196954,0.01128,88944.0,88934.0,0.01124429]
[1767311197159,0.01128,88944.0,88935.0,0.01124416]
[1767311197327,0.01128,88944.0,88938.0,0.01124378]
[1767311197528,0.0001478,88948.0,88940.0,0.18524898]
[1767311197734,0.0001478,88948.0,88935.0,0.19652898]
[1767311198040,0.0001478,88948.0,88935.0,0.20777314]
[1767311198239,0.0001478,88948.0,88935.0,0.19652898]
[1767311199995,0.0001478,88948.0,88935.0,0.19648607]
[1767311200492,0.0001478,88948.0,88936.0,0.01124404]
[1767311200694,0.0001478,88948.0,88935.0,0.19648607]
[1767311201207,0.0001478,88948.0,88938.0,0.40122276]
[1767311202666,0.0001478,88948.0,88935.0,0.20773023]
[1767311202864,0.0001478,88948.0,88938.0,0.40122276]
[1767311203506,0.0001478,88948.0,88935.0,0.19648607]
[1767311203685,0.0001478,88948.0,88938.0,0.40122276]
[1767311206241,0.0001478,88948.0,88938.0,0.41246654]
[1767311206474,0.0001478,88948.0,88938.0,0.40122276]
[1767311207329,0.0001478,88948.0,88938.0,0.41246654]
[1767311207541,0.0001478,88948.0,88938.0,0.40122276]
[1767311207746,0.0001478,88948.0,88935.0,0.19648607]
[1767311207928,0.0001478,88948.0,88938.0,0.40122276]
[1767311210429,0.0001478,88948.0,88935.0,0.19648607]
[1767311210632,0.0001478,88948.0,88938.0,0.40122276]
[1767311213011,0.0001478,88948.0,88936.0,0.01124404]
[1767311213227,0.0001478,88948.0,88938.0,0.40122276]
[1767311214431,0.0001478,88948.0,88937.0,0.01124391]
[1767311214672,0.0001478,88948.0,88938.0,0.40122276]
[1767311216196,0.0001478,88948.0,88938.0,0.41246654]
[1767311216361,0.0001478,88948.0,88938.0,0.40122276]
[1767311216714,0.0001478,88948.0,88938.0,0.41246654]
[1767311216927,0.0001478,88948.0,88938.0,0.40122276]
[1767311217071,0.0001478,88948.0,88938.0,0.59271242]
[1767311217922,0.0001478,88948.0,88938.0,0.58146864]
[1767311218094,0.0001478,88948.0,88938.0,0.59271242]
[1767311218958,0.0001478,88948.0,88935.0,0.02248125]
[1767311219123,0.1745528,88948.0,88935.0,0.01123709]
[1767311219503,0.1745528,88948.0,88938.0,0.40122276]
[1767311219722,0.0001478,88948.0,88938.0,0.40122276]
[1767311220931,0.0001478,88948.0,88938.0,0.41250276]
[1767311221551,0.0001478,88948.0,88931.0,0.01124467]
[1767311221552,0.00055,88938.0,88931.0,0.01124467]
[1767311221759,0.00055,88938.0,88931.0,0.01128]
[1767311222003,0.174405,88942.0,88931.0,0.01128]
[1767311223478,0.174405,88942.0,88932.0,0.01124454]
[1767311224099,0.174405,88942.0,88933.0,0.01124441]
[1767311224303,0.01128,88946.0,88929.0,0.01128]
[1767311224507,0.174405,88945.0,88930.0,0.40122276]
[1767311224870,0.174405,88945.0,88933.0,0.01124441]
[1767311225286,0.01128,88946.0,88933.0,0.01124441]
[1767311225515,0.40122276,88943.0,88932.0,0.01124454]
[1767311225713,0.40122276,88943.0,88933.0,0.01124441]
[1767311226368,0.40122276,88943.0,88932.0,0.01124454]
[1767311226493,0.40122276,88943.0,88934.0,0.01124429]
[1767311226683,0.40122276,88943.0,88933.0,0.01124441]
[1767311228069,0.40122276,88943.0,88934.0,0.01124429]
[1767311228866,0.01128,88946.0,88934.0,0.01124429]
[1767311229108,0.01128,88946.0,88935.0,0.01124416]
[1767311230035,0.01128,88946.0,88936.0,0.18024588]
[1767311230217,0.01128,88946.0,88936.0,0.19148992]
[1767311230418,0.01128,88946.0,88936.0,0.18024588]
[1767311230598,0.01128,88946.0,88931.0,0.18024588]
[1767311230802,0.01128,88946.0,88932.0,0.01124454]
[1767311230968,0.01128,88946.0,88933.0,0.01124441]
[1767311231364,0.01128,88946.0,88934.0,0.01124429]
[1767311231588,0.01128,88946.0,88933.0,0.01124441]
[1767311231794,0.40122276,88944.0,88933.0,0.00857256]
[1767311231999,0.40122276,88943.0,88934.0,0.01124429]
[1767311232356,0.01128,88946.0,88935.0,0.01124416]
[1767311232572,0.40122276,88944.0,88934.0,0.01124429]
[1767311232760,0.40122276,88944.0,88933.0,0.00857256]
[1767311232963,0.40122276,88944.0,88934.0,0.01124429]
[1767311233189,0.40122276,88944.0,88933.0,0.00857256]
[1767311233402,0.40122276,88944.0,88933.0,0.01124441]
[1767311234108,0.40122276,88944.0,88932.0,0.01985207]
[1767311234256,0.40122276,88942.0,88932.0,0.01128]
[1767311235264,0.185685,88946.0,88932.0,0.02252454]
[1767311235469,0.185685,88946.0,88939.0,0.18024588]
[1767311235470,0.010731,88946.0,88939.0,0.18024588]
[1767311235902,0.174405,88947.0,88933.0,0.01128]
[1767311236106,0.40122276,88943.0,88933.0,0.01128]
[1767311236470,0.40126198,88943.0,88933.0,0.01128]
[1767311237110,0.57566698,88943.0,88926.0,0.23647224]
[1767311237352,0.57566698,88943.0,88919.0,0.18024588]
[1767311237353,0.57566698,88937.0,88919.0,0.18024588]
[1767311237531,0.40126198,88932.0,88923.0,0.01128]
[1767311237737,0.174405,88937.0,88923.0,0.01128]
[1767311238703,0.174405,88937.0,88919.0,0.18024588]
[1767311238882,0.174405,88937.0,88922.0,0.01163072]
[1767311239567,0.174405,88937.0,88922.0,0.01158784]
[1767311239750,0.40146198,88932.0,88922.0,0.01158784]
[1767311240206,0.40146198,88932.0,88922.0,0.00030784]
[1767311241757,0.40146198,88932.0,88913.0,0.18024588]
[1767311241758,0.174405,88931.0,88913.0,0.18024588]
[1767311242113,0.174405,88929.0,88913.0,0.18024588]
[1767311242310,0.01128,88928.0,88913.0,0.18024588]
[1767311243774,0.01128,88928.0,88909.0,0.01124745]
[1767311243775,0.18341324,88922.0,88905.0,0.19557062]
[1767311244000,0.18341324,88922.0,88896.0,0.22498111]
[1767311244001,0.18341324,88920.0,88899.0,0.01139652]
[1767311244203,0.18341324,88920.0,88902.0,0.01128]
[1767311244455,0.18341324,88919.0,88902.0,0.01128]
[1767311244949,0.18341324,88919.0,88903.0,0.01124821]
[1767311245170,0.18341324,88919.0,88902.0,0.02252834]
[1767311245741,0.18341324,88919.0,88904.0,0.01124808]
[1767311245944,0.18341324,88919.0,88903.0,0.18432266]
[1767311246144,0.18341324,88919.0,88903.0,0.19557087]
[1767311247178,0.18341324,88919.0,88903.0,0.18432266]
[1767311250148,0.18341324,88919.0,88899.0,0.0001478]
[1767311250358,0.40126198,88920.0,88899.0,0.0001478]
[1767311250359,0.40126198,88910.0,88899.0,0.0001478]
[1767311252231,0.01128,88912.0,88899.0,0.0001478]
[1767311253022,0.40126198,88910.0,88899.0,0.0001478]
[1767311253276,0.01128,88912.0,88899.0,0.0001478]
[1767311253894,0.40126198,88910.0,88899.0,0.0001478]
[1767311254092,0.18341324,88899.0,88878.0,0.18432266]
[1767311254267,0.58467522,88892.0,88878.0,0.18432266]
[1767311254467,0.01128,88891.0,88878.0,0.18432266]
[1767311254652,0.18341324,88892.0,88878.0,0.18432266]
[1767311254653,0.01128,88890.0,88878.0,0.18432266]
[1767311254854,0.00267338,88890.0,88880.0,0.01125112]
[1767311255051,0.00267338,88890.0,88881.0,0.01125099]
[1767311255249,0.00267338,88890.0,88881.0,0.06750576]
[1767311255454,0.00267338,88890.0,88883.0,0.18432266]
[1767311257411,0.00267338,88890.0,88882.0,0.0001478]
[1767311257958,0.00267338,88890.0,88882.0,8e-07]
[1767311259929,0.18341324,88889.0,88882.0,8e-07]
[1767311260152,0.18341324,88889.0,88876.0,0.00052088]
[1767311260153,0.18341324,88889.0,88876.0,0.00047882]
[1767311260371,0.18341324,88889.0,88870.0,0.01128]
[1767311260603,0.18341324,88889.0,88870.0,0.41254198]
[1767311261028,0.18341324,88889.0,88870.0,0.42379437]
[1767311261435,0.18341324,88889.0,88870.0,0.01128]
[1767311261805,0.40126198,88910.0,88880.0,0.01125112]
[1767311262048,0.18341324,88908.0,88879.0,0.40126198]
[1767311262310,0.18341324,88908.0,88880.0,0.40126198]
[1767311262504,0.18341324,88908.0,88882.0,0.01125087]
[1767311263867,0.18341324,88906.0,88881.0,0.01125099]
[1767311264198,0.4125093,88910.0,88880.0,0.45751735]
[1767311264199,0.18341324,88904.0,88882.0,0.01125087]
[1767311264740,0.18341324,88902.0,88882.0,0.01125087]
[1767311265138,0.18341324,88902.0,88880.0,0.4125131]
[1767311265705,0.18341324,88902.0,88880.0,0.40126198]
[1767311266249,0.18341324,88902.0,88880.0,0.4125131]
[1767311266453,0.18341324,88902.0,88880.0,0.40126198]
[1767311266672,0.18341324,88902.0,88880.0,0.58558464]
[1767311266878,0.18341324,88900.0,88881.0,0.18432266]
[1767311267123,0.18341324,88898.0,88881.0,0.18432266]
[1767311270812,0.18341324,88898.0,88881.0,0.19557365]
[1767311271123,0.18341324,88898.0,88883.0,0.01125074]
[1767311271329,0.18341324,88898.0,88885.0,0.01125049]
[1767311271551,0.18341324,88898.0,88884.0,0.01125061]
[1767311271763,0.18341324,88898.0,88882.0,0.01125087]
[1767311272425,0.18341324,88898.0,88883.0,0.01125074]
[1767311273209,0.01128,88897.0,88883.0,0.01125074]
[1767311273415,0.19469324,88897.0,88883.0,0.01125074]
[1767311273633,0.18341324,88897.0,88883.0,0.01125074]
[1767311273814,0.01128,88896.0,88883.0,0.01125074]
[1767311274465,0.01128,88896.0,88885.0,0.01125049]
[1767311274675,0.01128,88896.0,88883.0,0.01125074]
[1767311274898,0.01128,88896.0,88882.0,0.01125087]
[1767311275808,0.01128,88896.0,88881.0,0.19557365]
[1767311276013,0.01128,88896.0,88882.0,0.01125087]
[1767311276380,0.20048661,88896.0,88881.0,0.19557365]
[1767311276786,0.20048661,88896.0,88881.0,0.18432266]
[1767311279277,0.20048661,88896.0,88880.0,0.40126198]
[1767311281363,0.20048661,88896.0,88875.0,0.1863889]
[1767311281617,0.20048661,88896.0,88870.0,0.58775607]
[1767311281819,0.20048661,88896.0,88870.0,0.59900846]
[1767311282018,0.20048661,88896.0,88870.0,0.65526983]
[1767311282183,0.20048661,88896.0,88873.0,0.01125201]
[1767311282379,0.20048661,88896.0,88874.0,0.01125188]
[1767311282806,0.20048661,88896.0,88871.0,0.01125226]
[1767311283165,0.20048661,88896.0,88870.0,0.59900846]
[1767311283573,0.20048661,88896.0,88870.0,0.58775607]
[1767311284050,0.20048661,88896.0,88870.0,0.59900846]
[1767311284238,0.20048661,88896.0,88870.0,0.58775607]
[1767311284439,0.20048661,88896.0,88870.0,0.59900846]
[1767311284644,0.20048661,88896.0,88870.0,0.58775607]
[1767311284858,0.20048661,88896.0,88870.0,0.19774648]
[1767311285177,0.20048661,88896.0,88870.0,0.59900846]
[1767311285603,0.20048661,88896.0,88870.0,0.19774648]
[1767311285808,0.20048661,88896.0,88871.0,0.01125226]
[1767311286090,0.20048661,88896.0,88870.0,0.59900846]
[1767311286248,0.20048661,88896.0,88870.0,0.19774648]
[1767311286447,0.20048661,88896.0,88870.0,0.18649409]
[1767311286720,0.20045596,88894.0,88870.0,0.40136717]
[1767311287002,0.18920661,88889.0,88870.0,0.00010519]
[1767311287317,0.40126198,88890.0,88870.0,0.00010519]
[1767311287318,0.18920661,88887.0,88870.0,0.00010519]
[1767311287631,0.18920661,88887.0,88870.0,1.9e-07]
[1767311288276,0.18920661,88887.0,88864.0,0.0001478]
[1767311288277,0.20045684,88887.0,88864.0,0.0001478]
[1767311288451,0.07878102,88888.0,88864.0,0.00025306]
[1767311288452,0.18920661,88879.0,88864.0,0.00025306]
[1767311288637,0.18920661,88877.0,88864.0,0.00025306]
[1767311288853,0.18920661,88877.0,88864.0,6e-08]
[1767311293372,0.20045811,88877.0,88864.0,6e-08]
[1767311293904,0.18920661,88875.0,88864.0,6e-08]
[1767311297301,0.20045836,88875.0,88864.0,6e-08]
[1767311297502,0.18920661,88869.0,88864.0,6e-08]
[1767311297729,0.18920661,88867.0,88864.0,6e-08]
[1767311297901,0.18920661,88867.0,88844.0,0.0004]
[1767311297902,0.59046859,88861.0,88844.0,0.1867889]
[1767311298105,0.18920661,88861.0,88844.0,0.1867889]
[1767311298526,0.40203567,88860.0,88844.0,0.1867889]
[1767311298737,0.01128,88859.0,88844.0,0.1867889]
[1767311298929,0.20048661,88859.0,88844.0,0.0004]
[1767311302619,0.18920661,88858.0,88846.0,8e-07]
[1767311303922,0.17604763,88855.0,88846.0,8e-07]
[1767311305338,0.40203567,88856.0,88830.0,0.0004]
[1767311305339,0.17604763,88851.0,88830.0,0.0004]
[1767311305554,0.17604763,88847.0,88830.0,0.00047107]
[1767311305744,0.40203567,88840.0,88830.0,0.00047107]
[1767311305951,0.01128,88839.0,88830.0,0.00047107]
[1767311306157,0.18732763,88839.0,88830.0,0.00047107]
[1767311306363,0.18682263,88839.0,88830.0,0.00047107]
[1767311306777,0.010775,88839.0,88830.0,0.00047107]
[1767311310736,0.18682263,88839.0,88830.0,0.00047107]
[1767311310938,0.18682263,88839.0,88830.0,7e-08]
[1767311310939,0.01125644,88838.0,88830.0,7e-08]
[1767311311145,0.01125644,88838.0,88821.0,0.0004]
[1767311311146,0.17604763,88834.0,88819.0,0.0004]
[1767311311355,0.06753869,88838.0,88819.0,0.00047892]
[1767311311356,0.17604763,88832.0,88819.0,0.00047892]